Cogmind - Beta 16 *** ADVENTURER MODE // 2025.10.22 @ 17:00:05 Player: LegoMDS Result: Self-destructed Performance ------------- Evolutions (4) 2000 Regions Visited (4) 800 Robots Destroyed (5) 25 Value Destroyed (214) 214 Prototype IDs (3) 60 Alien Tech Used (0) 0 Bonus (300) 300 TOTAL SCORE: 3399 Bonus ------- Registered with UFD 300 Cogmind --------- Core Integrity 775/850 Matter 300/300 Energy 150/150 System Corruption 0% Temperature Warm (132) Movement Walking (118) Location -6/Factory Parts ------- > --- POWER (2) -------- Light Angular Momentum Engine > --- PROPULSION (4) --- Aluminum Leg Carbon-fiber Leg Titanium Leg > --- UTILITY (5) ------ Scrap Suit Small Storage Unit Improved Light Armor Plating A0-MCA's Component Scanner > --- WEAPON (4) ------- Spread Laser Thermic Laser Makeshift Sword Makeshift Spear > --- INVENTORY (8) ---- Improved Signal Interpreter Scrapoid Pod Botcube Peak State ------------ > --- POWER ------------ Light Angular Momentum Engine > --- PROPULSION ------- Aluminum Leg Carbon-fiber Leg Titanium Leg > --- UTILITY ---------- Scrap Suit Small Storage Unit Improved Light Armor Plating A0-MCA's Component Scanner > --- WEAPON ----------- Spread Laser Thermic Laser Makeshift Sword Makeshift Spear > --- INVENTORY -------- Improved Signal Interpreter Scrapoid Pod Botcube [Rating: 50] Favorites ----------- Power Nuclear Core Engine Light Angular Momentum Engine Power Core Nuclear Core Propulsion Aluminum Leg Leg Aluminum Leg Hover Unit Improved Airjet Utility Small Storage Unit Device Improved Heat Sink Storage Small Storage Unit Processor A0-MCA's Component Scanner Protection Improved Light Armor Plating Weapon Spread Laser Energy Gun Spread Laser Ballistic Gun Assault Rifle Slashing Weapon Makeshift Sword Piercing Weapon Makeshift Spear Build | -11 -10 -10 -8 -6 ------- Run | Yrd Mat Sub Scr Fac Slots Evolved 8 | . . . . 8 Power 1 | . . . . 1 Propulsion 2 | . . . . 2 Utility 3 | . . . . 3 Weapon 2 | . . . . 2 Parts Attached 21 | 6 1 . 8 6 Power 4 | 1 . . 2 1 Engine 3 | 1 . . 1 1 Core 1 | . . . 1 . Reactor . | . . . . . Propulsion 5 | 2 . . 1 2 Treads . | . . . . . Leg 4 | 2 . . 1 1 Wheel . | . . . . . Hover 1 | . . . . 1 Flight . | . . . . . Utility 6 | 1 1 . 2 2 Device 3 | . 1 . 1 1 Storage 1 | 1 . . . . Processor 1 | . . . . 1 Hackware . | . . . . . Protection 1 | . . . 1 . Artifact . | . . . . . Weapon 6 | 2 . . 3 1 Energy Gun 3 | 1 . . 2 . Energy Cannon . | . . . . . Ballistic Gun 1 | 1 . . . . Ballistic Cannon . | . . . . . Launcher . | . . . . . Special Weapon . | . . . . . Impact Weapon . | . . . . . Slashing Weapon 1 | . . . 1 . Piercing Weapon 1 | . . . . 1 Special Melee Weapon . | . . . . . Unidentified Prototypes . | . . . . . Parts Lost 1 | . . . . 1 Power 1 | . . . . 1 Propulsion . | . . . . . Utility . | . . . . . Weapon . | . . . . . Highest Loss Streak 1 | . . . . 1 To Critical Strikes . | . . . . . Average Backups 5 | 1 2 4 6 2 Power . | . 1 1 . . Propulsion . | . . . . . Utility 2 | . . 1 3 1 Weapon 1 | . 1 1 2 . Tool/Special . | . . . . . Unused Backups 8 | . . . 6 2 Power 1 | . . . 1 . Propulsion . | . . . . . Utility 4 | . . . 3 1 Weapon 2 | . . . 2 . Tool/Special 1 | . . . . 1 Average Slot Usage (%) 94 | . 88 100 100 71 Engine 5 | . 14 14 5 . Core 6 | . . . 8 5 Leg 25 | . 28 28 28 13 Device 7 | . 3 14 8 6 Storage 12 | . 14 14 14 6 Processor 1 | . . . . 5 Protection 5 | . . . 5 6 Energy Gun 14 | . 14 14 15 11 Ballistic Gun 7 | . 14 14 8 . Slashing Weapon 4 | . . . 4 6 Piercing Weapon 1 | . . . . 5 Peak Build Rating 50 | 6 7 8 21 50 Average Rating 20 | 4 6 7 17 44 On Entrance 8 | . 6 7 8 21 Avg Prop Armor Cover (%) . | . . . . . Naked Turns . | . . . . . Heaviest Build 32 | 14 15 15 22 32 Greatest Support 42 | 20 20 20 27 42 Greatest Overweight (x) 1 | . . . . 1 Average Overweight (x) . | . . . . . Largest Inventory Capacity 8 | 8 8 8 8 8 Average Capacity 7 | 6 8 8 8 8 Most Carried 8 | 5 4 8 8 6 Average Carried 6 | 2 2 4 7 4 Final Capacity 8 | 8 8 8 8 8 Final Carried 8 | 2 3 8 8 4 Scrap Suit Usage (%) 17 | . . . . 100 Parts Cannibalized 3 | . . . . 3 Class Distribution -------------------- 60% | Mutant 39% | Derelict-Mutant Dominant Class ---------------- Mutant | -10/Materials Mutant | -10/Subcaves Mutant | -8/Scraptown Derelict-Mutant | -6/Factory Resources | -11 -10 -10 -8 -6 ----------- Run | Yrd Mat Sub Scr Fac Matter Collected 416 | 208 . 56 62 90 Remotely . | . . . . . Salvage Created 270 | . . 56 . 214 Parts 9 | . . 2 . 7 Haulers Intercepted . | . . . . . Recyclers Shooed 1 | . . . . 1 Parts Field Recycled . | . . . . . Retrieved Matter . | . . . . . Parts Self-Destructed . | . . . . . Prevented . | . . . . . Parts Restored . | . . . . . Kills | -11 -10 -10 -8 -6 ------- Run | Yrd Mat Sub Scr Fac Combat Hostiles Destroyed 4 | . . 1 . 3 Melee 1 | . . . . 1 Guns 2 | . . 1 . 1 Classes Destroyed 3 | . . 1 . 2 Operator 1 | . . . . 1 Grunt 3 | . . . . 3 Subdweller 1 | . . 1 . . Best Kill Streak 2 | . . 1 . 2 Combat Bots Only 2 | . . 1 . 2 Max Kills in Single Turn 1 | . . 1 . 1 Gunslinging . | . . . . . Exploded . | . . . . . Melee 1 | . . . . 1 Uniques/NPCs Destroyed . | . . . . . Combat | -11 -10 -10 -8 -6 -------- Run | Yrd Mat Sub Scr Fac Hostile Shots Fired 59 | . . 2 . 57 Missed 13 | . . . . 13 Hits 46 | . . 2 . 44 Projectile 46 | . . 2 . 44 Critical Strikes 1 | . . . . 1 Damage Taken 659 | . . 33 . 626 Core 75 | . . . . 75 Absorbed by Shields . | . . . . . Ignored by Resistances 183 | . . 10 . 173 Regen/Repaired (Parts) 25 | . . . . 25 Core Remaining (%) 100 | 100 . . 100 . Volleys Fired 16 | . . 2 . 14 Largest 2 | . . 2 . 2 Hottest 150 | . . 70 . 150 Shots Fired 25 | . . 4 . 21 Gun 25 | . . 4 . 21 Cannon . | . . . . . Launcher . | . . . . . Special . | . . . . . Kinetic 2 | . . 2 . . Thermal 23 | . . 2 . 21 Explosive . | . . . . . Electromagnetic . | . . . . . Robot Hit Streak 10 | . . 3 . 10 Robot Miss Streak 5 | . . . . 5 Penetration Max . | . . . . . Secondary Targets . | . . . . . Shots Hit Robots 28 | . . 3 . 25 Core Hits 17 | . . 2 . 15 Critical Kills . | . . . . . Critical Parts Destroyed . | . . . . . Critical Strikes 5 | . . . . 5 Burn 3 | . . . . 3 Sever 2 | . . . . 2 Melee Attacks 11 | . . . . 11 Impact . | . . . . . Slashing 9 | . . . . 9 Piercing 2 | . . . . 2 Sneak Attacks 1 | . . . . 1 Combat Hostiles . | . . . . . Follow-up Attacks 1 | . . . . 1 Damage Inflicted 596 | . . 40 . 556 Guns 302 | . . 40 . 262 Cannons . | . . . . . Explosions . | . . . . . Melee 294 | . . . . 294 Ramming . | . . . . . Kinetic 15 | . . 15 . . Thermal 287 | . . 25 . 262 Explosive . | . . . . . Electromagnetic . | . . . . . Impact . | . . . . . Slashing 212 | . . . . 212 Piercing 82 | . . . . 82 Highest Corruption . | . . . . . Average Corruption . | . . . . . Corruption Purged . | . . . . . Corruption Blocked . | . . . . . Overload Shots . | . . . . . Overflow Damage . | . . . . . Projectiles . | . . . . . Explosions . | . . . . . Melee . | . . . . . Knockbacks . | . . . . . Impact . | . . . . . Kinetic . | . . . . . Secondary . | . . . . . Self-Inflicted Damage . | . . . . . Shots . | . . . . . Rammed . | . . . . . Targets Rammed . | . . . . . Kicked . | . . . . . Crushed . | . . . . . Highest Temperature 372 | . . . . 372 Average Temperature 139 | . . . . 139 Received Heat Transfer 228 | . . 12 . 216 Effects 2 | . . . . 2 Shutdowns 1 | . . . . 1 Short Circuit 1 | . . . . 1 Siege Activations . | . . . . . Martial Activations . | . . . . . Shielding Activations . | . . . . . Robots Disrupted . | . . . . . Combat Hostiles . | . . . . . Robots Corrupted . | . . . . . Combat Hostiles . | . . . . . Parts Fried . | . . . . . Impact Corruptions . | . . . . . Robots Melted 1 | . . . . 1 Combat Hostiles 1 | . . . . 1 Parts Melted 2 | . . . . 2 Heat Transferred 979 | . . 74 . 905 Parts Sabotaged . | . . . . . Parts Stolen . | . . . . . Parts Stripped . | . . . . . Power Chain Reactions . | . . . . . Alert | -11 -10 -10 -8 -6 ------- Run | Yrd Mat Sub Scr Fac Maximum Alert Level . | . . . . . Low Security (%) 100 | 100 100 . . 100 Level 1 . | . . . . . Level 2 . | . . . . . Level 3 . | . . . . . Level 4 . | . . . . . Level 5 . | . . . . . High Security . | . . . . . Max Security . | . . . . . Peak Influence 60 | . . . . 60 Initial . | . . . . . Average 11 | . . . . 15 Influence Increases 150 | . . . . 150 Destroy 0b10 Robot/C 60 | . . . . 60 Destroy 0b10 Robot/NC 5 | . . . . 5 Destroy Leader 10 | . . . . 10 Successful Hack 30 | . . . . 30 Lose Combat Pursuer 45 | . . . . 45 Influence Decreases 140 | . . . . 140 Time Decay 130 | . . . . 130 Lost Part 10 | . . . . 10 Squads Dispatched 3 | . . . . 3 Investigation . | . . . . . Extermination . | . . . . . Reinforcement 3 | . . . . 3 Assault . | . . . . . Garrison . | . . . . . Intercept . | . . . . . Searches Triggered . | . . . . . Construction Impeded 1 | . . . . 1 Haulers Reinforced 1 | . . . . 1 Active Scanning Responses . | . . . . . Cargo Convoy Interrupts . | . . . . . Stealth | -11 -10 -10 -8 -6 --------- Run | Yrd Mat Sub Scr Fac Distress Signals . | . . . . . Communications Jammed . | . . . . . Distress Signals . | . . . . . Times Spotted 12 | . . 1 . 11 Peak Tracking Total 3 | . . 1 . 3 Tactical Retreats 2 | . . . . 2 Traps | -11 -10 -10 -8 -6 ------- Run | Yrd Mat Sub Scr Fac Traps Triggered 1 | . . . . 1 Indirectly . | . . . . . Trap Hack Attempts . | . . . . . Triggered . | . . . . . Disarmed . | . . . . . Reprogrammed . | . . . . . Reused . | . . . . . Traps Extracted . | . . . . . Installed . | . . . . . Triggered . | . . . . . Machines | -11 -10 -10 -8 -6 ---------- Run | Yrd Mat Sub Scr Fac Machines Disabled . | . . . . . Max in Single Turn . | . . . . . Machines Repaired . | . . . . . Machines Dismantled . | . . . . . Machines Sabotaged . | . . . . . Overloaded Fab Kills . | . . . . . Hacking | -11 -10 -10 -8 -6 --------- Run | Yrd Mat Sub Scr Fac Machines Accessed 6 | . . . 3 3 Terminals . | . . . . . Fabricators 1 | . . . . 1 Repair Stations . | . . . . . Recycling Units . | . . . . . Scanalyzers 2 | . . . . 2 Garrison Access . | . . . . . Total Hacks 23 | . . . 18 5 Successful 22 | . . . 18 4 Failed 1 | . . . . 1 Catastrophic . | . . . . . Database Lockouts . | . . . . . Manual . | . . . . . Terminals . | . . . . . Fabricators 1 | . . . . 1 Repair Stations . | . . . . . Recycling Units . | . . . . . Scanalyzers 4 | . . . . 4 Garrison Access . | . . . . . Terminal Hacks 18 | . . . 18 . Record 18 | . . . 18 . Fabricator Hacks 1 | . . . . 1 Network Status 1 | . . . . 1 Repair Station Hacks . | . . . . . Recycling Unit Hacks . | . . . . . Scanalyzer 3 | . . . . 3 Retrieve Study 3 | . . . . 3 Garrison Access Hacks . | . . . . . Unauthorized Hacks . | . . . . . Terminals . | . . . . . Fabricators . | . . . . . Repair Stations . | . . . . . Recycling Units . | . . . . . Scanalyzers . | . . . . . Garrison Access . | . . . . . Data Cores Recovered . | . . . . . Used . | . . . . . Hacking Detections 2 | . . . . 2 Full Trace Events . | . . . . . Feedback Events . | . . . . . Feedback Blocked . | . . . . . Robot Schematics Acquired . | . . . . . Robots Built . | . . . . . Authchips . | . . . . . Time . | . . . . . Total Robot Build Rating . | . . . . . Part Schematics Acquired . | . . . . . Parts Built . | . . . . . Authchips . | . . . . . Time . | . . . . . Total Part Build Rating . | . . . . . Part Studies Acquired 3 | . . . . 3 Parts Repaired . | . . . . . Time . | . . . . . Parts Recycled . | . . . . . Recycled Matter . | . . . . . Retrieved Matter . | . . . . . Retrieved Components . | . . . . . Parts Scanalyzed . | . . . . . Part Schematics Acquired . | . . . . . Parts Damaged . | . . . . . Bothacking | -11 -10 -10 -8 -6 ------------ Run | Yrd Mat Sub Scr Fac Used RIF Installer . | . . . . . Robots Hacked . | . . . . . Non-combat . | . . . . . Combat . | . . . . . Robot Hacks Applied . | . . . . . Relay Couplers Released . | . . . . . Fabnet Peak Effective % . | . . . . . Robots Rewired . | . . . . . Allies Hacked . | . . . . . Hacks Repelled . | . . . . . Allies | -11 -10 -10 -8 -6 -------- Run | Yrd Mat Sub Scr Fac Total Allies . | . . . . . Largest Group . | . . . . . Highest-Rated Group . | . . . . . Highest-Rated Ally . | . . . . . Total Orders . | . . . . . Ally Attacks . | . . . . . Total Damage . | . . . . . Kills . | . . . . . Allies Corrupted . | . . . . . Allies Melted . | . . . . . Intel | -11 -10 -10 -8 -6 ------- Run | Yrd Mat Sub Scr Fac Active Infowar (turns) . | . . . . . Robot Analysis Total . | . . . . . Derelict Logs Recovered 2 | . . . 2 . Drone Launches . | . . . . . Drone Recoveries . | . . . . . Exploration | -11 -10 -10 -8 -6 ------------- Run | Yrd Mat Sub Scr Fac Turns Passed 2561 | 61 77 118 1857 448 Spaces Moved 1913 | 48 62 91 1489 223 Core 14 | 14 . . . . Treads . | . . . . . Legs 1899 | 34 62 91 1489 223 Wheels . | . . . . . Hover . | . . . . . Flight . | . . . . . Fastest Speed 50 | 50 120 120 120 117 Average Speed 127 | 99 120 120 122 169 Slowest Speed 195 | 120 120 120 125 195 Overloaded Moves . | . . . . . Propulsion Burnouts . | . . . . . Robots Hopped . | . . . . . Potential Cave-ins . | . . . . . Cave-ins Triggered . | . . . . . Exploration Rate (%) 25 | 3 15 11 88 8 Regions Visited 4 Branch Regions 2 Pre-discovered Areas 1 | . . . 1 . Known Exits Taken . | . . . . . Unknown Exits Taken 4 | 1 1 1 1 . Scrap Searched 5 | . . . 5 . Spaces Dug . | . . . . . Terrain Destroyed . | . . . . . Melee . | . . . . . Projectile . | . . . . . AOE . | . . . . . Terrain Rammed . | . . . . . Walls Destroyed . | . . . . . Machines Disabled . | . . . . . Actions | -11 -10 -10 -8 -6 --------- Run | Yrd Mat Sub Scr Fac Total 2008 | 61 64 96 1525 262 Wait . | . . . . . Move 1909 | 47 61 90 1488 223 Hop . | . . . . . Pick Up 29 | 8 2 4 12 3 Fast Attach 3 | . . . 3 . Attach 13 | 6 1 . . 6 Detach . | . . . . . Swap 5 | . . . 5 . Drop 18 | . . . 17 1 Fire 16 | . . 2 . 14 Melee 10 | . . . . 10 Ram . | . . . . . Kick . | . . . . . Crush . | . . . . . Escape Stasis 5 | . . . . 5 Rewire . | . . . . . Trap . | . . . . . Miscellaneous . | . . . . . Route ------- -11/Scrapyard -10/Materials -10/Subcaves (discovered 2 exits: [*Mat] / *Scr) -8/Scraptown (discovered 2 exits: *Fac x2) -6/Factory History --------- Turn | Location | Event 3 | -11/Scrapyard | Discovered new exit (range 16) 62 | -11/Scrapyard | Entered Materials 89 | -10/Materials | Discovered new exit (range 11) 139 | -10/Materials | Entered Subcaves 140 | -10/Subcaves | Approached by a straggling Scientist 150 | -10/Subcaves | Scientist uncovered a shortcut to Scraptown 178 | -10/Subcaves | Shifting Twisted Machinery released Mak. Sword 178 | -10/Subcaves | Discovered new exit (range 12) 185 | -10/Subcaves | Shifting Twisted Machinery released Scrap Shield 257 | -10/Subcaves | Entered Scraptown 320 | -8/Scraptown | Build established: Mutant 439 | -8/Scraptown | Heard Great Nut preacher, LISTEN AND RECITE! 474 | -8/Scraptown | Discovered new exit (range 11) 570 | -8/Scraptown | Visited Shadow of the Wyrm 595 | -8/Scraptown | Visited Fellowship of the Rings 872 | -8/Scraptown | Visited UFD Registry 872 | -8/Scraptown | Registered with UFD as "Flexitail" 889 | -8/Scraptown | Visited Cave Peace 929 | -8/Scraptown | Visited Comm Corps 1015 | -8/Scraptown | Visited DA-N13 Charitable Foundation 1026 | -8/Scraptown | Found DCF Scrap (27 items) 1074 | -8/Scraptown | Visited Scrapoid Pod Storage 1107 | -8/Scraptown | Visited Scrapoid Research Area 1154 | -8/Scraptown | Delivered Scrap Shield to a Scientist 1269 | -8/Scraptown | Found Scrapoid Pod 1304 | -8/Scraptown | Visited A0-MCA Data Center 1311 | -8/Scraptown | Given an A- rating by A0-MCA 1317 | -8/Scraptown | Found A0-MCA's Component Scanner 1348 | -8/Scraptown | Visited Research Penetration Think Tank 1374 | -8/Scraptown | Visited Derelict Rescue Squad 1414 | -8/Scraptown | Discovered new exit (range 5) 1508 | -8/Scraptown | Visited Botcube Research 1556 | -8/Scraptown | Visited Supply Room 1616 | -8/Scraptown | Visited Science Testing Area 1637 | -8/Scraptown | Visited LU-1G1's Boring Crew 1752 | -8/Scraptown | Scanned Subdweller tech in exchange for log data 1754 | -8/Scraptown | Learned Factory stockpile data 1756 | -8/Scraptown | Learned location of Armory (-3) 1870 | -8/Scraptown | Build established: Derelict-Mutant 2050 | -8/Scraptown | Found Botcube 2093 | -8/Scraptown | Found Scrap Suit 2114 | -8/Scraptown | Entered Factory 2114 | -6/Factory | Evolved 8 slots: Power x1, Propulsion x2, Utility x3, Weapon x2 2562 | -6/Factory | Self-destructed Last Messages --------------- K-01 Serf cleans the Power Conduit. Slug penetrates Wall. Penetrated by Slug. K-01 Serf collects debris. Penetrated by Slug. K-01 Serf collects debris. Acquired 20 matter. K-01 Serf collects debris. Slug penetrates Power Conduit. K-01 Serf cleans the Power Conduit. Power Conduit explodes. K-01 Serf destroyed. Power Conduit explodes. K-01 Serf destroyed. Power Conduit explodes. Scrap Suit cannibalized Carbon-fiber Leg to repair Titanium Leg+. ALERT: Construction progress impeded, dispatching reinforcements to local area. Penetrated by Slug. Map ----- +----------------------------------------------------+ | ?????????????????????????????????????????????????? | | ?????????????????????????????????????????????????? | | ?????????????????????????????????????????????????? | | ?????????????????????????????????????????????????? | | ?????????????????????????????????????????????????? | | ?????????????????????????????????????????????????? | | ?????????????????????????????????????????????????? | | ?????????????????????????????????????????????????? | | ?????????????????????????????????????????????????? | | ?????????????????????????????????????????????????? | | ?????????????????????????????????????????????????? | | ?????????????????????????????????????????????????? | | ?????????????????????????????????????????????????? | | ?????????????????????????????????????????????????? | | ?????????????????????????????????????????????????? | | ????????????#????????????????????????????????????? | | ????????????? ??????????????????????????????????? | | ??????????? ###+###########??????????????????????? | | ?????????? #??????????????????????? | | ?????????? #??????????????????????? | | ????????? #??????????????????????? | | ????????? u #??????????????????????? | | ????????? #??????????????????????? | | ????????? % #????????? ???????????? | | #######?? ##########+####????????? | | ? %@ w h R ????????? | | ???????? | | " u ???????? | | " ???????? | | " % ???????? | | ### T## #######?????????? | | ??????# #???????????????? | | ??????# #???????????????? | | ??????# #???????????????? | | ??????# #???????????????? | | ??????# ^ #???????????????? | | ??????# "F"" #???????????!???? | | ??????# """" ###########????????????? | | ####### # #????????????? | | # #????????????? | | ######### # #????????????? | | #???????# # #????????????? | | #???????# ##+########????????????? | | #???????# #???????????????????? | | #########+#######???# #???????????????????? | | ???# #???# #####???????????????? | | ???# #???# #???????????????? | | ???# #???# #???????????????? | | ???# """ """ #???# #???????????????? | | ???# """ """ #???# #???????????????? | +----------------------------------------------------+ Best States ------------- Heat Dissipation 39 Energy Generation 18 Energy Capacity 250 Matter Stores 300 Matter Capacity 300 Sight Range 16 Terrain Scan Density 10 Armor Coverage 150 Resistance: KI 20 Resistance: TH 20 Resistance: EX 20 Resistance: EM 20 Resistance: I 20 Resistance: S 20 Resistance: P 20 Evasion (%) 55 Offensive Hacking 10 Item Schematics ----------------- None Robot Schematics ------------------ None Fabricated ------------ Nothing Repaired ---------- Nothing Studied --------- Titanium Leg | -6/Factory | Hacked Nuclear Core | -6/Factory | Hacked Thermic Laser | -6/Factory | Hacked Alien Tech Used ----------------- None Achievements -------------- Civilization 2243 DATA ERROR: Steam Global Achievement% Item+ Nice Directions, Buddy Organ Harvest Challenges ------------ None Game ------ Seed GrapheneCryofiberSystem Manual? 0 Play Time 00:19:48 Cumulative 98.1 hours Start 2025.10.22 @ 16:43:36 End 2025.10.22 @ 17:00:05 Sessions 1 Manual Loads 0 Difficulty Adventurer Special Mode None Game No. 142 Rogue 13 Adventurer 129 Explorer 0 Win Type - Total 0 Types 0/0/0/0/0/0/0/0/0/0 Lore% 69 Gallery% 61 Achievement% 26 Wizard Run 0 Options --------- Layout 1 ASCII 0 Keyboard 0 Movement Mouse Keybinds 0 Fullscreen 1 Font 32/SmallcapsGlow Map View 50x35 Zoom Use 0% Tactical HUD 0 Map Filters NONE Filters NONE Steam 1 RUN: 1e827cdd-c89a-4d93-8e42-8ece00a8a6c8